bitfinex/quotes_ETHUSD_20240827
["timestamp","ask_amount","ask_price","bid_price","bid_amount"]
[1724793471103,0.79907046,2567.7,2567.3,9.7274]
[1724793471319,0.79907046,2567.7,2567.1,3.89534]
[1724793471320,0.79907046,2567.5,2567.1,3.89534]
[1724793471524,0.79907046,2567.5,2566.4,9.8665]
[1724793471525,1.97242773,2567.3,2566.4,9.8665]
[1724793471686,0.79877843,2566.9,2566.5,3.89625]
[1724793472070,0.79877843,2566.9,2566.7,3.89604]
[1724793472312,0.79877843,2566.9,2566.5,5.272506]
[1724793472498,0.79877843,2566.9,2566.6,3.89615]
[1724793472681,0.79877843,2566.9,2566.4,13.76289]
[1724793473271,0.08030025,2566.8,2566.6,3.89608]
[1724793473472,0.79877843,2566.9,2566.7,3.89605]
[1724793473697,0.79877843,2566.9,2566.6,5.272338]
[1724793474222,1.56447636,2567.1,2566.9,3.89574]
[1724793474223,0.7987627,2567.1,2566.9,3.89574]
[1724793474516,0.7987627,2567.2,2566.9,3.89574]
[1724793474668,0.7987627,2567.2,2567.0,0.55]
[1724793475777,0.7987627,2567.1,2567.0,0.55]
[1724793476203,0.7987627,2567.1,2566.5,6.89627]
[1724793476402,0.79882346,2567.0,2566.7,3.89603]
[1724793476630,0.79882346,2567.0,2566.8,0.55]
[1724793476928,0.79882346,2567.0,2566.6,3.55]
[1724793476929,0.79882346,2566.9,2566.6,7.44611]
[1724793477139,0.79882346,2566.9,2564.9,2.1638]
[1724793477140,0.79867212,2566.7,2565.4,0.3901]
[1724793477332,0.79867212,2566.7,2565.5,3.89785]
[1724793477333,1.56447636,2566.7,2565.5,3.89785]
[1724793477635,1.56447636,2566.7,2563.3,2.0384284]
[1724793477636,9.6153,2564.7,2563.3,2.0384284]
[1724793477785,9.6153,2564.7,2562.7,0.79965291]
[1724793477786,12.66262479,2564.6,2562.3,10.62645291]
[1724793478141,1.59522779,2562.9,2562.1,1.19947937]
[1724793478278,1.59522779,2562.9,2561.8,9.8268]
[1724793478279,1.59522779,2562.7,2561.8,1.19947937]
[1724793478478,1.59522779,2562.7,2561.3,0.1299794]
[1724793478479,0.79761389,2562.1,2561.3,0.1299794]
[1724793478677,1.19138933,2561.5,2561.3,0.1299794]
[1724793478928,1.56048991,2561.5,2561.3,0.1299794]
[1724793479127,1.26014925,2561.4,2561.3,0.1299794]
[1724793479441,1.26014925,2561.4,2558.3,2.0384284]
[1724793479442,2.2567,2561.3,2558.3,2.0384284]
[1724793479581,2.0,2559.1,2558.3,2.0384284]
[1724793479775,3.91,2558.9,2558.3,2.0384284]
[1724793480027,6.58537068,2559.0,2558.3,2.0384284]
[1724793480028,3.90827,2558.7,2558.3,2.0384284]
[1724793480226,2.6851418,2558.8,2556.7,7.95661991]
[1724793480227,3.63937666,2558.6,2556.7,5.9496784]
[1724793480529,2.13793086,2558.5,2558.0,5.61129651]
[1724793480731,0.95465104,2558.4,2557.3,4.23984881]
[1724793480880,0.06607681,2558.5,2557.1,3.91063]
[1724793481084,1.18327982,2558.3,2556.8,0.59496784]
[1724793481282,1.18327982,2558.3,2555.4,3.91318]
[1724793481283,9.3166,2558.1,2555.2,9.6987]
[1724793481509,1.18327982,2557.2,2555.6,5.61129651]
[1724793481703,2.0,2557.8,2556.1,5.73974471]
[1724793481940,0.06459983,2558.0,2556.1,5.73974471]
[1724793481941,0.2,2557.7,2556.6,5.61129651]
[1724793482081,3.9706068,2557.7,2556.1,0.70242267]
[1724793482282,2.0,2557.6,2556.1,0.1284482]
[1724793482481,0.0608068,2557.7,2556.1,0.1284482]
[1724793482725,2.0,2558.1,2556.2,3.91204]
[1724793482726,0.05796074,2557.5,2556.2,3.91204]
[1724793482881,3.90935,2558.0,2556.1,0.1284482]
[1724793483080,3.90935,2558.0,2556.1,4.0405982]
[1724793483284,1.18327982,2558.4,2556.9,5.61129651]
[1724793483285,0.40542622,2557.5,2556.9,5.61129651]
[1724793483518,0.05796074,2557.9,2556.5,3.91154]
[1724793483729,1.57771662,2558.6,2556.6,0.391154]
[1724793483730,0.40552234,2557.5,2556.6,0.391154]
[1724793483883,0.40552234,2557.5,2556.6,0.07821179]
[1724793484088,3.90843,2558.6,2556.3,3.91178]
[1724793484285,0.40558019,2558.3,2557.1,3.91064]
[1724793484487,0.40558019,2558.3,2556.2,0.40405982]
[1724793484488,3.91011,2557.5,2556.2,0.40405982]
[1724793484797,0.05791107,2557.4,2556.2,3.91196]
[1724793484998,9.47588019,2558.3,2556.3,0.07821728]
[1724793484999,0.40558019,2558.3,2556.3,0.07821728]
[1724793485219,0.05598886,2557.3,2556.5,3.91145]
[1724793485532,3.90704,2559.5,2557.7,3.9097]
[1724793485682,3.90704,2559.5,2556.6,1.46462713]
[1724793485683,0.40570127,2559.2,2557.5,3.91002]
[1724793485881,0.40570127,2559.2,2557.6,0.46918535]
[1724793486083,0.40570127,2559.2,2557.0,3.91072]
[1724793486084,0.05339734,2559.1,2557.7,10.03116526]
[1724793486284,2.0,2561.0,2557.7,10.03116526]
[1724793486285,11.11131662,2561.6,2557.9,9.2837]
[1724793486483,1.57771662,2561.6,2559.4,9.2837]
[1724793486719,9.0714,2562.4,2559.4,9.2837]
[1724793486720,3.90323,2562.0,2560.1,3.90606]
[1724793486927,3.90384,2561.6,2559.7,3.90665]
[1724793487148,3.90264,2562.4,2560.9,5.61129651]
[1724793487436,0.38850894,2562.8,2560.7,9.2837]
[1724793487437,0.05339734,2561.5,2560.7,9.2837]
[1724793487614,3.90333,2562.0,2561.0,0.55]
[1724793487798,3.90539,2560.6,2558.8,3.90801]
[1724793487988,3.9049,2560.9,2559.1,3.90759]
[1724793487989,0.44129901,2560.5,2559.1,3.90759]
[1724793488347,0.05837611,2560.5,2559.3,3.90727]
[1724793488624,3.90493,2560.9,2559.4,3.0]
[1724793488780,3.90493,2560.9,2558.4,3.90857]
[1724793488781,0.05925939,2560.4,2559.5,5.84009017]
[1724793488979,0.05925939,2560.4,2557.3,3.91024]
[1724793488980,0.44129901,2560.6,2558.9,5.84009017]
[1724793489218,0.05925939,2560.3,2558.9,5.84009017]
[1724793489434,3.90485,2561.0,2559.0,0.07813601]
[1724793489588,0.05861436,2560.2,2558.4,3.90864]
[1724793489786,3.90569,2560.4,2558.5,0.390864]
[1724793490027,0.4412801,2560.7,2559.2,3.90746]
[1724793490028,0.05861436,2560.1,2559.2,3.90746]
[1724793490189,3.90466,2561.1,2559.3,3.90728]
[1724793490190,0.4412801,2561.0,2559.3,3.90728]
[1724793490389,12.97513,2561.7,2560.1,5.84009017]
[1724793490597,0.4412801,2561.9,2560.1,5.84009017]
[1724793490810,3.90321,2562.0,2560.1,5.84009017]
[1724793490811,0.4412801,2561.5,2560.1,5.84009017]
[1724793491336,9.9141,2562.5,2560.2,0.62810002]
[1724793491626,9.9141,2562.5,2560.2,0.55]
[1724793491871,4.8214781,2562.7,2560.3,0.07809182]
[1724793491872,3.90226,2562.7,2560.3,0.07809182]
[1724793491999,0.40528979,2563.1,2561.0,9.9669]
[1724793492201,0.05907088,2562.6,2562.0,5.84009017]
[1724793492445,0.05907088,2562.6,2562.0,6.19656663]
[1724793492647,0.07804468,2563.5,2561.1,6.90448]
[1724793492648,0.07804468,2563.5,2562.1,0.55]
[1724793492936,0.05781888,2562.5,2562.1,0.55]
[1724793493081,0.07804468,2564.1,2561.9,0.55]
[1724793493284,0.07804468,2564.1,2562.1,3.90294]
[1724793493285,0.05781888,2562.4,2562.1,3.90294]
[1724793493495,3.90063,2563.7,2562.2,0.55]
[1724793493716,0.46810768,2563.6,2562.2,0.55]
[1724793493927,0.05781888,2563.6,2562.3,9.307]
[1724793494083,0.05781888,2563.6,2562.2,0.55]
[1724793494291,4.26380343,2563.5,2562.2,0.55]
[1724793494529,0.07804468,2563.4,2562.2,0.55]
[1724793494886,3.90159,2563.1,2562.0,0.55]
[1724793495199,0.46820368,2563.0,2562.0,0.55]
[1724793495404,0.14016956,2563.0,2562.0,0.55]
[1724793495603,0.06212488,2563.0,2562.0,0.55]
[1724793495787,0.06368107,2563.3,2562.0,0.55]
[1724793496126,3.90233,2562.6,2561.5,9.307]
[1724793496429,0.04931746,2563.2,2561.5,9.307]
[1724793496430,0.05992517,2562.5,2561.5,9.307]
[1724793496628,3.90183,2562.9,2561.5,9.307]
[1724793496782,0.06001439,2562.4,2561.5,9.307]
[1724793496987,3.90307,2562.1,2560.7,9.9051]
[1724793497228,3.90348,2561.9,2560.0,9.9051]
[1724793497425,3.96721107,2561.8,2560.0,13.81134]
[1724793497596,3.90491,2560.9,2559.4,3.90705]
[1724793497799,3.90548,2560.5,2559.0,3.90768]
[1724793497997,0.71487259,2560.4,2558.7,0.005]
[1724793498338,3.90664,2559.8,2558.7,0.005]
[1724793498505,0.77406389,2560.4,2558.7,0.005]
[1724793498506,1.10553659,2559.7,2558.7,0.005]
[1724793498831,0.06368107,2559.6,2558.7,0.005]
[1724793498993,0.05588709,2559.6,2558.7,3.91322]
[1724793499195,0.05588709,2559.6,2558.7,0.005]
[1724793499397,0.0558573,2559.5,2558.7,0.005]
[1724793499597,3.90715,2559.5,2558.7,0.005]
[1724793499820,0.50892208,2559.4,2558.7,0.005]
[1724793500017,4.02537708,2559.4,2558.7,0.005]
[1724793500232,0.11820708,2559.4,2558.7,0.005]
[1724793500594,0.05452601,2559.4,2558.7,0.005]
[1724793501293,7.81616,2558.8,2558.7,0.005]
[1724793501593,3.90785,2559.0,2558.7,0.005]
[1724793501808,3.90808,2558.8,2558.7,0.005]
[1724793502037,0.05236956,2558.9,2558.7,0.00062598]
[1724793502254,0.05073769,2558.8,2558.7,0.00062598]
[1724793502562,0.06368107,2559.5,2558.7,0.00062598]
[1724793502769,9.9975,2560.5,2558.7,0.00062598]
[1724793502770,0.06368107,2559.9,2558.7,0.00062598]
[1724793502974,0.05057848,2559.4,2558.7,3.90875598]
[1724793503267,0.06368107,2560.4,2558.7,0.00062598]
[1724793503268,3.90655,2559.8,2558.7,0.00062598]
[1724793503458,0.04876271,2559.3,2558.7,0.00062598]
[1724793503659,3.90658,2559.8,2558.7,0.00062598]
[1724793503964,0.04876271,2559.2,2558.7,0.00062598]
[1724793504174,3.96939107,2560.4,2558.7,0.00062598]
[1724793504175,0.06368107,2560.3,2558.7,0.00062598]
[1724793504462,0.04944958,2560.2,2558.8,3.90793]
[1724793504664,3.90628,2560.0,2558.9,0.55]
[1724793504850,0.06368107,2559.9,2558.7,0.00062598]
[1724793505056,3.97010107,2559.9,2558.7,0.55062598]
[1724793505251,0.04952919,2559.8,2558.8,0.07814867]
[1724793505436,3.90525,2560.7,2558.9,0.55]
[1724793505659,3.90513,2560.8,2558.9,0.55]
[1724793505660,0.06368107,2560.6,2559.3,3.90731]
[1724793505819,0.1123603,2560.6,2559.6,3.90684]
[1724793506025,3.90659,2559.8,2558.7,0.00062598]
[1724793506340,1.38813966,2559.7,2558.7,0.00062598]
[1724793506539,1.04615989,2559.7,2558.7,0.00062598]
[1724793506841,0.1123603,2559.7,2558.7,3.90877598]
[1724793507023,0.75098318,2559.7,2558.7,0.00062598]
[1724793507222,0.1123603,2559.7,2558.7,0.00062598]
[1724793507457,0.1123603,2559.7,2558.5,4.45852]
[1724793507746,0.51425233,2559.7,2558.5,4.45852]
[1724793508061,0.51425233,2559.7,2558.7,3.90822]
[1724793508270,0.1123603,2559.7,2558.8,0.62814543]
[1724793508475,0.04867923,2559.7,2558.8,0.55]
[1724793508766,3.90656,2559.8,2558.6,0.55]
[1724793508929,0.40539972,2560.3,2559.2,3.90733]
[1724793508930,0.0485199,2559.6,2559.2,3.90733]
[1724793509127,0.06368107,2560.6,2559.5,3.907]
[1724793509361,0.06368107,2560.6,2559.6,0.0781223]
[1724793509547,0.06368107,2560.6,2559.5,3.907]
[1724793509548,0.0485199,2560.5,2559.7,0.62812295]
[1724793509930,0.0485199,2560.5,2560.0,3.9062]
[1724793510130,0.51789148,2561.3,2559.7,0.62812295]
[1724793510131,0.56124229,2561.3,2560.2,3.9059]
[1724793510447,0.40532132,2561.4,2560.3,0.62809114]
[1724793510662,2.517891,2562.7,2560.7,3.90512]
[1724793510663,0.0485199,2561.2,2560.7,3.90512]
[1724793510973,0.0485199,2561.2,2560.6,9.6552]
[1724793510974,0.40521838,2562.3,2561.4,3.90397]
[1724793511188,0.40521838,2562.3,2561.8,3.90338]
[1724793511390,0.04690257,2562.2,2562.0,9.6552]
[1724793511549,0.4051413,2563.3,2562.0,9.6552]
[1724793511727,0.4051413,2563.3,2560.6,9.6552]
[1724793511728,0.06368107,2563.2,2560.6,9.6552]
[1724793512078,3.902,2562.8,2561.3,3.90414]
[1724793512226,3.90261,2562.4,2561.1,3.90449]
[1724793512426,0.45394207,2562.3,2560.9,3.90481]
[1724793512626,0.11058364,2562.3,2561.0,3.9047]
[1724793512831,0.11058364,2562.3,2561.1,0.3901]
[1724793513075,0.11058364,2562.3,2561.2,0.55]
[1724793513432,0.04690257,2562.3,2561.4,3.90407]
[1724793513659,0.06368107,2562.6,2561.6,0.3901]
[1724793513859,0.44633229,2563.1,2561.7,3.90363]
[1724793514059,0.04992614,2562.5,2561.8,0.55]
[1724793514260,0.06368107,2562.8,2561.9,3.90324]
[1724793514580,0.06368107,2563.2,2562.0,0.55]
[1724793514782,3.90169,2563.0,2561.8,0.55]
[1724793515082,0.4051413,2563.3,2561.9,0.07805024]
[1724793515287,0.4051413,2563.3,2562.4,3.90251]
[1724793515288,0.0530395,2562.9,2562.4,3.90251]
[1724793515580,0.06368107,2563.8,2562.5,0.55]
[1724793515781,0.06368107,2563.8,2562.7,3.90201]
[1724793515782,0.46008518,2563.8,2562.7,3.90201]
[1724793516082,0.05365529,2563.7,2562.9,9.2386]
[1724793516227,0.40499621,2564.1,2563.0,0.62801597]
[1724793516431,0.05365529,2564.0,2563.0,4.52956597]
[1724793516744,0.05365529,2564.0,2563.0,4.91972597]
[1724793517017,0.05365529,2564.0,2563.2,3.90123]
[1724793517173,0.05365529,2564.0,2563.3,1.01810255]
[1724793517373,0.05365529,2564.0,2563.9,3.9003]
[1724793517621,0.0700532,2565.3,2563.9,3.9003]
[1724793517622,0.40490106,2565.0,2563.9,3.55]
[1724793517772,0.40490106,2565.0,2564.2,3.89971]
[1724793517972,0.0700532,2565.3,2564.3,0.62797476]
[1724793518172,0.0700532,2565.3,2564.4,3.89944]
[1724793518380,0.05358573,2565.2,2564.5,13.81544888]
[1724793518584,0.05358573,2565.2,2564.6,3.89923]
[1724793518810,0.0700532,2565.3,2564.7,0.62796135]
[1724793519006,0.0700532,2565.3,2564.8,0.07796426]
[1724793519210,0.05358573,2565.2,2564.9,0.55]
[1724793519417,0.05358573,2565.2,2565.0,0.07796436]
[1724793519621,0.05358573,2565.2,2564.9,0.55]
[1724793519622,0.0700532,2565.3,2565.1,0.55]
[1724793519806,0.0700532,2565.3,2565.1,0.07795162]
[1724793520006,0.0700532,2565.3,2565.2,0.55]
[1724793520810,0.0700532,2565.3,2564.5,9.2881]
[1724793520811,0.51638549,2565.3,2564.5,9.2881]
[1724793521012,0.06368107,2565.2,2564.6,0.55]
[1724793521334,0.1172668,2565.2,2564.6,0.55]
[1724793521542,3.89849,2565.1,2564.6,0.55]
[1724793521743,0.05358573,2565.2,2564.7,3.97693706]
[1724793521897,0.0700532,2565.3,2564.8,0.6279521]
[1724793522094,0.0700532,2565.3,2564.9,9.2881]
[1724793522300,0.0700532,2565.3,2565.1,3.89843]
[1724793522498,0.0700532,2565.3,2565.2,0.62794887]
[1724793522727,0.0700532,2565.3,2565.2,0.28111812]
[1724793523045,0.0700532,2565.3,2565.2,0.35906695]
[1724793523342,0.0700532,2565.3,2564.5,3.89937]
[1724793523515,0.12711282,2565.3,2564.6,3.0]
[1724793523843,0.0700532,2565.3,2564.4,6.8994]
[1724793524142,0.0700532,2565.3,2564.5,3.89933]
[1724793524343,0.0700532,2565.3,2565.2,16.90286]
[1724793524851,3.89547,2567.1,2565.4,3.89793]
[1724793524852,0.0974131,2567.0,2565.4,3.89793]
[1724793525000,3.89575,2566.9,2565.5,6.89777]
[1724793525202,0.05401301,2566.9,2565.6,0.07792693]
[1724793525447,0.05401301,2566.9,2565.9,3.89725]
[1724793525743,0.05401301,2566.9,2566.1,3.89683]
[1724793526045,0.40504316,2567.1,2566.3,3.89664]
[1724793526196,0.05401301,2566.8,2566.4,0.07791164]
[1724793526401,0.40504316,2567.1,2566.4,0.07791164]
[1724793527024,0.40504316,2567.1,2566.5,0.55]
[1724793527210,0.40504316,2567.1,2566.6,0.07791159]
[1724793527413,0.40504316,2567.1,2566.7,0.55]
[1724793527624,0.05401301,2567.0,2566.7,0.55]
[1724793528353,0.05401301,2567.0,2566.8,0.07791155]
[1724793528501,0.40504316,2567.1,2566.9,0.55]
[1724793528914,0.40504316,2567.1,2565.7,3.89746]
[1724793528915,3.8957,2567.0,2565.7,3.89746]
[1724793529127,0.5274751,2566.9,2565.8,3.0]
[1724793529335,3.89599,2566.8,2565.8,3.0]
[1724793529543,3.89623,2566.6,2565.1,3.89844]
[1724793529715,0.09740913,2566.7,2565.0,3.89851]
[1724793529716,0.38399802,2566.5,2565.0,3.89851]
[1724793529918,0.05525373,2566.5,2565.3,3.89814]
[1724793530122,0.05525373,2566.5,2564.8,9.1062]
[1724793530123,3.89747,2565.8,2564.8,9.1062]
[1724793530306,0.389747,2565.7,2564.8,9.1062]
[1724793530533,0.05521404,2565.7,2564.8,9.1062]
[1724793530716,0.09743804,2566.3,2564.8,9.1062]
[1724793531043,0.05521404,2565.6,2565.1,3.89848]
[1724793531251,0.0974344,2566.7,2565.1,3.89848]
[1724793531252,3.8966,2566.4,2565.1,3.89848]
[1724793531406,3.89685,2566.2,2564.9,3.89868]
[1724793531613,0.09743257,2566.1,2564.9,7.79736]
[1724793531961,3.89685,2566.2,2565.0,3.89854]
[1724793531962,0.05461863,2566.0,2565.0,3.89854]
[1724793532317,0.05461863,2566.0,2564.9,3.89868]
[1724793532617,0.09743195,2566.2,2564.9,3.89868]
[1724793532817,0.09743195,2566.2,2565.0,0.55]
[1724793533019,0.49684214,2566.2,2565.0,4.44861]
[1724793533220,0.05436054,2566.1,2565.2,3.89832]
[1724793533423,0.39941019,2566.2,2565.4,3.898]
[1724793533631,3.99371033,2566.6,2565.5,0.55]
[1724793533804,0.05436054,2566.1,2565.3,0.55]
[1724793534012,3.89666,2566.3,2565.3,0.55]
[1724793534241,3.89666,2566.3,2565.1,3.89837]
[1724793534242,0.05436054,2566.0,2565.2,3.0]
[1724793534451,0.09742726,2566.2,2565.3,0.55]
[1724793534649,0.05436054,2565.9,2565.3,4.44814]
[1724793534948,3.89615,2566.7,2565.5,3.89778]
[1724793535255,3.89615,2566.7,2565.6,0.55]
[1724793535256,0.05436054,2565.8,2565.6,0.55]
[1724793535404,3.99424729,2566.2,2565.3,0.55]
[1724793535603,0.05436054,2565.7,2565.4,0.07794177]
[1724793535837,3.89569,2567.0,2565.7,3.89753]
[1724793536031,4.38272718,2566.9,2565.8,0.07792654]
[1724793536248,0.48697718,2566.9,2565.8,0.07792654]
[1724793536454,0.05436054,2566.8,2565.9,3.89725]
[1724793536665,0.05436054,2566.8,2566.0,0.07792166]
[1724793537040,0.09740206,2566.8,2565.8,9.3134]
[1724793537266,0.05524409,2566.7,2565.8,9.3134]
[1724793537452,3.89621,2566.6,2565.9,0.55]
[1724793537775,0.09741302,2567.0,2565.9,0.55]
[1724793537776,3.89589,2566.9,2566.0,0.07793049]
[1724793537976,0.05524409,2566.5,2566.0,0.07793049]
[1724793538138,0.09741303,2566.8,2566.0,0.07793049]
[1724793538340,0.05524409,2566.4,2566.0,0.07793049]
[1724793538680,0.09740408,2566.9,2566.0,0.07793049]
[1724793538981,3.89504,2567.4,2566.2,3.89681]
[1724793539146,0.05524409,2566.8,2566.3,0.07791458]
[1724793539339,3.89545,2567.1,2566.1,0.3901]
[1724793539558,0.05524409,2566.7,2566.2,0.07791457]
[1724793539763,0.09739321,2567.2,2566.3,0.55]
[1724793540057,0.05524409,2566.6,2566.4,0.07791455]
[1724793540305,0.42996756,2567.4,2566.5,0.55]
[1724793540511,0.42996756,2567.4,2565.7,9.9036]
[1724793540512,3.89574,2566.9,2565.7,9.9036]
[1724793540803,0.09737248,2567.3,2565.7,9.9036]
[1724793540804,3.89563,2567.0,2565.7,13.80105]
[1724793541001,4.62485608,2566.9,2565.7,13.80105]
[1724793541166,4.68058644,2566.9,2565.7,13.80105]
[1724793541361,3.89623,2566.6,2565.7,9.9036]
[1724793541561,4.52807528,2566.5,2565.2,3.89826]
[1724793541792,0.09741893,2566.4,2565.1,9.7058]
[1724793542005,3.89722,2566.0,2564.6,13.6049]
[1724793542222,0.09743635,2565.9,2564.8,3.89893]
[1724793542407,0.15322624,2565.9,2564.8,3.89893]
[1724793542594,0.55827086,2565.9,2564.8,3.89893]
[1724793543727,0.55827086,2565.9,2564.6,13.6049]
[1724793543728,0.05578989,2565.9,2564.9,0.077949]
[1724793543940,0.05578989,2565.9,2565.8,0.3901]
[1724793544087,0.09739793,2567.1,2566.0,0.3901]
[1724793544289,0.05512498,2567.0,2566.1,0.62791517]
[1724793544491,3.89538,2567.2,2566.1,0.62791517]
[1724793544726,0.40506174,2566.9,2566.4,3.89645]
[1724793545030,0.45434282,2567.1,2566.4,3.89645]
[1724793545031,0.05506542,2567.1,2566.6,3.89611]
[1724793545233,3.89449,2567.8,2566.5,0.55]
[1724793545234,0.40501927,2567.5,2566.7,0.55]
[1724793545386,0.40501927,2567.5,2566.5,0.55]
[1724793545587,0.40501927,2567.5,2566.0,13.65979]
[1724793545588,3.89543,2567.2,2566.0,13.65979]
[1724793545840,0.48693657,2567.1,2566.1,0.55]
[1724793545998,0.05565098,2567.1,2566.2,0.3901]
[1724793546200,4.29990927,2567.5,2566.3,4.44655]
[1724793546497,0.40501927,2567.5,2566.8,3.89588]
[1724793546854,0.40501927,2567.5,2566.3,0.55]
[1724793546855,0.05600814,2567.4,2567.0,9.7627]
[1724793546986,0.05600814,2567.4,2567.3,8.18038]
[1724793547186,0.40501927,2567.5,2567.4,4.28509]
[1724793547432,0.1256296,2567.9,2567.4,4.83509]
[1724793547641,0.1256296,2567.9,2567.6,0.3901]
[1724793547937,0.1256296,2567.9,2567.7,0.07787258]
[1724793548099,0.1256296,2567.9,2567.7,0.62787258]
[1724793548292,0.1256296,2567.9,2567.8,4.36234735]
[1724793548497,0.1256296,2567.9,2567.8,4.91234735]
[1724793548735,0.1256296,2567.9,2567.8,17.86862735]
[1724793549299,0.1256296,2567.9,2567.8,17.79076]
[1724793549728,0.1256296,2567.9,2567.8,17.40066]
[1724793550706,0.1256296,2567.9,2567.8,13.50628]
[1724793550954,0.1256296,2567.9,2567.3,3.89501]
[1724793551104,0.1256296,2567.9,2566.7,9.0619]
[1724793551311,3.89439,2567.8,2566.7,9.0619]
[1724793551557,3.89487,2567.5,2566.0,9.452]
[1724793551854,0.49938042,2567.7,2566.1,3.89695]
[1724793551855,0.40200196,2567.7,2566.1,3.89695]
[1724793552003,3.89514,2567.3,2566.0,9.452]
[1724793552204,0.09738984,2567.2,2566.0,9.452]
[1724793552428,0.1542938,2567.2,2566.0,9.452]
[1724793552645,3.8955,2567.1,2565.4,9.0619]
[1724793552847,3.8955,2567.1,2565.8,3.89738]
[1724793552848,0.0974053,2567.0,2565.8,3.89738]
[1724793553051,0.15426959,2567.0,2565.8,3.89738]
[1724793553200,0.15426959,2567.0,2565.4,9.0619]
[1724793553201,3.89613,2566.7,2565.4,9.0619]
[1724793553399,3.89581,2566.9,2565.4,12.95979]
[1724793553400,0.09741725,2566.6,2565.4,12.95979]
[1724793553605,0.05612021,2566.6,2565.7,3.89755]
[1724793553807,0.05612021,2566.6,2565.8,0.07792984]
[1724793554042,0.05612021,2566.6,2565.9,3.89713]
[1724793554246,0.05612021,2566.6,2565.5,3.8978]
[1724793554555,3.89591,2566.8,2565.5,3.89782]
[1724793554752,0.05502853,2566.5,2565.6,3.89761]
[1724793555049,3.99309811,2567.0,2565.7,3.89747]
[1724793555222,0.05502853,2566.4,2565.4,9.0619]
[1724793555423,0.09740811,2567.0,2565.5,3.0]
[1724793555622,3.99275821,2567.2,2565.5,3.0]
[1724793555814,0.05486969,2566.9,2565.6,0.55]
[1724793556005,3.89592,2566.8,2565.6,4.44772]
[1724793556205,0.0974081,2566.7,2565.6,4.44772]
[1724793556410,0.0974081,2566.7,2565.4,9.0619]
[1724793556671,3.89693,2566.2,2564.9,9.6394]
[1724793556952,3.89693,2566.2,2564.6,0.3901]
[1724793556953,3.89744,2565.8,2564.6,0.3901]
[1724793557128,0.09744694,2565.7,2564.6,4.28932]
[1724793557321,0.09744694,2565.7,2564.7,3.89907]
[1724793557528,0.05468105,2565.6,2564.7,3.89907]
[1724793557724,0.52182627,2565.9,2564.7,3.89907]
[1724793558144,0.52182627,2565.9,2564.5,0.3901]
[1724793558145,3.89768,2565.7,2564.5,0.3901]
[1724793558461,3.89797,2565.5,2564.5,0.3901]
[1724793558633,0.09746329,2565.4,2564.5,0.3901]
[1724793558959,0.05426395,2565.3,2564.5,0.3901]
[1724793559660,0.05426395,2565.3,2564.5,4.2894]
[1724793559858,0.05426395,2565.3,2563.7,3.90056]
[1724793559859,0.05426395,2565.3,2564.3,0.3901]
[1724793560069,3.89851,2565.1,2564.3,0.3901]
[1724793560234,3.89851,2565.1,2563.8,16.814]
[1724793560235,0.48732593,2565.0,2563.8,9.0132]
[1724793560455,0.54114284,2565.0,2563.7,3.9006]
[1724793560628,0.54114284,2565.0,2563.5,0.3901]
[1724793560629,2.0,2564.8,2563.5,0.3901]
[1724793560822,2.0,2564.8,2563.0,3.90162]
[1724793560823,2.0,2564.2,2563.0,3.90162]
[1724793561032,2.0,2563.9,2562.8,1.0]
[1724793561231,0.09752325,2563.8,2562.8,1.0]
[1724793561474,0.09751716,2564.0,2562.8,4.90185]
[1724793561669,0.05293229,2563.7,2562.8,1.0]
[1724793561971,2.0,2563.5,2562.8,1.0]
[1724793562218,0.09753629,2563.4,2562.8,1.0]
[1724793562476,0.14758664,2563.4,2562.8,1.0]
[1724793563575,4.04875664,2563.4,2562.8,1.0]
[1724793563732,0.14758664,2563.4,2562.8,0.99]
[1724793564571,2.0,2563.3,2562.8,0.99]
[1724793564777,0.09754407,2563.2,2562.8,0.99]
[1724793565260,0.04937365,2563.1,2562.8,0.99]
[1724793565998,13.21257,2563.7,2562.8,0.99]
[1724793565999,2.0,2564.8,2564.0,3.90014]
[1724793566190,2.0,2564.8,2564.1,0.55]
[1724793566191,2.09748593,2564.8,2564.1,0.55]
[1724793566396,2.0,2565.1,2564.2,3.8998]
[1724793566557,0.0974658,2565.3,2564.4,3.89945]
[1724793566756,2.0,2565.4,2564.5,3.97734255]
[1724793567095,2.0,2565.4,2564.0,9.7664]
[1724793567096,2.0,2565.5,2564.6,0.55]
[1724793567255,0.04606626,2565.3,2564.9,3.89868]
[1724793567448,2.0,2566.1,2565.0,0.62795291]
[1724793567449,0.09744114,2566.0,2565.0,0.62795291]
[1724793567756,0.04606626,2565.9,2565.0,0.55]
[1724793568096,0.04606626,2565.9,2565.1,3.97638283]
[1724793568394,0.04606626,2565.9,2565.2,0.55]
[1724793568549,0.04606626,2565.9,2565.3,0.07795103]
[1724793568750,0.04606626,2565.9,2565.4,0.55]
[1724793568974,0.40518878,2566.4,2565.5,0.07794577]
[1724793569180,0.04606626,2565.8,2565.6,0.55]
[1724793569451,0.04606626,2565.8,2565.1,13.01122]
[1724793569452,0.04606626,2565.7,2565.2,4.28837]
[1724793569653,0.79214304,2566.1,2565.2,0.3901]
[1724793569976,0.04606626,2566.0,2565.3,3.89815]
[1724793570149,0.04606626,2566.0,2565.2,4.28842]
[1724793570557,0.04606626,2566.0,2565.3,3.89817]
[1724793570989,1.21708342,2566.2,2565.3,3.89817]
[1724793571197,0.04869173,2565.9,2565.3,3.89817]
[1724793571353,0.09742861,2566.0,2565.4,0.55]
[1724793571680,0.09742861,2566.0,2564.6,9.0692]
[1724793571681,3.89774,2565.6,2564.6,9.0692]
[1724793572005,3.89827,2565.3,2564.1,12.96908]
[1724793572156,3.89827,2565.3,2563.5,0.390091]
[1724793572157,0.79214304,2565.0,2564.2,0.07798063]
[1724793572352,1.46961169,2565.2,2564.2,3.89977]
[1724793572353,0.05102905,2565.2,2564.2,3.89977]
[1724793572555,0.05101912,2564.9,2563.9,3.90027]
[1724793572761,2.79214304,2565.1,2564.0,3.90009]
[1724793572967,0.05101912,2564.8,2563.8,8.19082]
[1724793573256,0.79214304,2564.9,2564.0,3.90014]